bitfinex/quotes_ETHUSD_20240719
["timestamp","ask_amount","ask_price","bid_price","bid_amount"]
[1721426988821,6.057377,3523.0,3522.2,2.55518]
[1721426989060,6.057377,3523.0,3522.5,0.0420928]
[1721426989258,6.057377,3523.0,3522.2,2.55518]
[1721426989474,5.06566,3523.0,3522.6,0.04204531]
[1721426989756,5.06566,3523.0,3522.2,2.55518]
[1721426989958,5.06566,3523.0,3522.7,0.04199783]
[1721426990159,5.06566,3523.0,3522.3,2.55513]
[1721426990647,5.06566,3523.0,3522.4,0.04214029]
[1721426995064,5.06566,3523.0,3522.4,2.59720029]
[1721426995277,2.511,3523.0,3522.4,0.55737332]
[1721426995434,2.297,3523.1,3522.7,2.55479]
[1721426995946,2.297,3523.1,3522.8,0.04200063]
[1721426996345,2.297,3523.1,3522.9,0.04194097]
[1721426996764,2.297,3523.1,3522.7,2.55479]
[1721426997261,2.297,3523.1,3522.8,0.04198844]
[1721426997473,2.297,3523.1,3522.7,2.55479]
[1721426997656,2.297,3523.1,3522.9,0.04194249]
[1721426997850,2.297,3523.1,3522.8,0.04198996]
[1721426998066,2.297,3523.1,3522.7,2.55479]
[1721426998282,2.297,3523.1,3522.9,0.04194249]
[1721426998604,2.297,3523.1,3522.8,0.04199301]
[1721426998756,2.297,3523.1,3523.0,0.04189806]
[1721426999178,2.297,3523.1,3522.7,2.55479]
[1721426999477,2.297,3523.1,3522.8,0.04199301]
[1721426999788,2.297,3523.1,3522.7,2.55479]
[1721426999994,2.297,3523.1,3522.9,0.04194554]
[1721427000197,2.297,3523.1,3523.0,0.04189273]
[1721427000572,2.55476,3522.9,3521.9,5.3994]
[1721427000874,2.511,3522.9,3522.3,2.55513]
[1721427001164,4.85161,3523.1,3522.5,2.55493]
[1721427002159,1.046,3522.6,3522.5,2.55493]
[1721427002359,1.046,3522.6,3522.5,3.065936]
[1721427002662,1.046,3522.6,3522.5,5.620936]
[1721427003362,1.046,3522.6,3522.5,3.065936]
[1721427003569,2.297,3523.1,3522.7,2.55482]
[1721427003805,1.046,3522.8,3522.7,2.55482]
[1721427005900,2.55445,3523.3,3522.7,2.55482]
[1721427006104,1.046,3522.8,3522.7,2.55482]
[1721427008730,2.2935,3523.4,3522.8,2.55477]
[1721427008883,1.046,3522.9,3522.8,2.55477]
[1721427011796,4.8479,3523.4,3522.8,0.05676996]
[1721427011797,1.046,3523.0,3522.8,0.05676996]
[1721427012011,2.5541,3523.8,3523.1,2.55452]
[1721427012312,2.2935,3523.7,3523.2,2.55449]
[1721427012997,1.046,3523.3,3523.2,2.55449]
[1721427013611,1.046,3523.3,3523.2,2.59361644]
[1721427017808,2.2935,3523.7,3523.2,2.59361644]
[1721427018002,1.046,3523.3,3523.2,2.59361644]
[1721427019440,1.046,3523.3,3523.2,0.03912644]
[1721427019646,3.3631,3523.3,3523.2,0.03912644]
[1721427019938,3.3631,3523.3,3522.2,0.59210628]
[1721427019939,6.509251,3523.3,3522.4,2.55504]
[1721427020108,7.42601,3523.3,3523.2,0.03912644]
[1721427020307,4.87166,3523.1,3522.5,2.555]
[1721427020500,1.046,3522.6,3522.5,2.555]
[1721427022204,1.046,3522.6,3522.1,2.55529]
[1721427022453,1.046,3522.3,3522.1,2.55522]
[1721427023213,1.046,3522.3,3521.8,2.55546]
[1721427023419,1.046,3522.0,3521.8,2.5555]
[1721427023948,1.046,3522.0,3521.6,2.55562]
[1721427024133,2.55519,3522.3,3521.6,2.55562]
[1721427024134,1.046,3521.7,3521.6,2.55562]
[1721427028634,1.046,3521.7,3521.6,2.59547274]
[1721427031341,4.87218,3522.4,3521.7,2.55553]
[1721427031544,1.046,3522.0,3521.7,2.55553]
[1721427031739,1.046,3522.0,3521.8,0.03983086]
[1721427031946,1.046,3522.0,3521.8,0.06906685]
[1721427034768,2.3387,3521.9,3521.8,0.06906685]
[1721427034980,2.3387,3521.9,3521.2,7.39]
[1721427034981,2.3387,3521.9,3521.4,2.55579]
[1721427035269,1.046,3521.6,3521.4,2.55579]
[1721427035574,1.046,3521.6,3521.5,2.62493187]
[1721427037574,1.046,3521.6,3521.5,0.06921187]
[1721427038097,1.046,3521.6,3521.5,0.06929339]
[1721427038267,1.046,3521.6,3521.2,2.55594]
[1721427038584,2.55551,3521.8,3521.5,0.06929339]
[1721427038891,1.046,3521.5,3521.2,2.55594]
[1721427042495,1.046,3521.5,3520.9,7.39]
[1721427042496,2.3387,3521.2,3520.9,7.39]
[1721427042701,1.046,3521.1,3520.9,7.39]
[1721427042877,1.046,3521.1,3520.6,2.55635]
[1721427043211,1.046,3520.7,3520.4,12.26]
[1721427043492,2.55621,3520.9,3520.2,2.55665]
[1721427043493,1.046,3520.5,3520.2,2.55665]
[1721427044292,1.046,3520.3,3520.2,2.55665]
[1721427045317,3.4002,3520.3,3518.7,7.39]
[1721427045486,3.4002,3520.3,3519.0,2.55748]
[1721427045487,2.55703,3519.7,3519.0,2.55748]
[1721427045662,1.046,3519.1,3519.0,2.55748]
[1721427046015,1.046,3519.1,3518.8,2.55765]
[1721427046294,1.046,3518.9,3518.8,0.60024966]
[1721427046859,2.55689,3519.9,3519.1,2.55746]
[1721427047060,1.046,3519.4,3519.1,2.55746]
[1721427047256,2.3542,3520.1,3518.8,9.03624966]
[1721427047484,1.046,3519.9,3519.7,2.55701]
[1721427047671,2.3542,3520.6,3519.7,3.068431]
[1721427047870,1.046,3520.2,3519.8,2.55695]
[1721427048113,2.3542,3520.6,3520.1,2.55673]
[1721427048261,2.3542,3520.6,3520.2,2.55661]
[1721427048465,3.0,3520.9,3520.2,2.55661]
[1721427049060,2.3542,3522.4,3519.9,2.55683]
[1721427049290,2.55573,3521.5,3520.8,2.55618]
[1721427050707,2.513,3521.8,3520.5,7.39]
[1721427050861,2.55567,3521.6,3521.0,2.55602]
[1721427051063,5.06851,3521.8,3520.8,2.55623]
[1721427051064,2.55573,3521.5,3520.8,2.55623]
[1721427051502,2.55558,3521.7,3520.9,2.55615]
[1721427051707,2.55558,3521.7,3520.8,2.55622]
[1721427051995,2.55558,3521.7,3521.0,2.55604]
[1721427055442,2.55558,3521.7,3521.1,2.55601]
[1721427056841,2.513,3521.8,3521.1,3.067231]
[1721427056995,2.513,3521.8,3521.1,2.55601]
[1721427057919,2.513,3521.8,3521.4,2.5558]
[1721427058815,2.513,3521.8,3521.5,0.0560897]
[1721427059136,2.513,3521.8,3521.4,2.5558]
[1721427059335,2.513,3521.8,3521.6,0.05604136]
[1721427059537,2.513,3521.8,3521.5,0.0560897]
[1721427059742,2.513,3521.8,3521.7,0.05599302]
[1721427059901,2.513,3521.8,3521.6,0.05604136]
[1721427060105,2.513,3521.8,3521.7,0.05599302]
[1721427060514,2.513,3521.8,3521.4,2.5558]
[1721427060712,2.513,3521.8,3521.7,0.05597791]
[1721427060937,2.513,3521.8,3521.4,2.5558]
[1721427061120,2.513,3521.8,3521.7,0.05597867]
[1721427061328,2.513,3521.8,3521.4,2.5558]
[1721427061917,2.513,3521.8,3521.5,0.05607535]
[1721427062326,2.513,3521.8,3521.4,2.5558]
[1721427062526,2.513,3521.8,3521.6,0.056027]
[1721427062836,2.513,3521.8,3521.7,0.05597867]
[1721427063036,2.513,3521.8,3521.2,2.55594]
[1721427063236,3.019838,3521.8,3521.3,2.61204204]
[1721427063437,2.513,3521.8,3521.3,2.61204204]
[1721427063956,5.06851,3521.8,3521.3,0.05617204]
[1721427064106,2.3463,3521.7,3521.3,0.05617204]
[1721427064304,2.3463,3521.7,3521.3,2.61199204]
[1721427064511,2.55529,3522.1,3521.2,2.55588]
[1721427064728,2.55529,3522.1,3521.4,2.61188654]
[1721427064932,0.999274,3522.0,3521.4,2.55575]
[1721427065241,0.999274,3522.0,3521.5,0.05608819]
[1721427065444,0.999274,3522.0,3521.4,2.55575]
[1721427065648,0.999274,3522.0,3521.5,0.05608819]
[1721427065942,0.999274,3522.0,3521.4,2.55575]
[1721427066103,0.999274,3522.0,3521.6,0.05603985]
[1721427066304,0.999274,3522.0,3521.4,2.55575]
[1721427066305,0.57152505,3521.9,3521.5,0.05608819]
[1721427066546,4.8823,3522.2,3521.7,0.05599151]
[1721427066847,4.8823,3522.2,3520.9,9.94612]
[1721427066848,2.513,3522.6,3522.2,2.55517]
[1721427067041,2.513,3522.6,3522.0,2.55535]
[1721427067042,2.513,3522.6,3522.1,2.55528]
[1721427067205,2.513,3522.6,3522.2,0.05571281]
[1721427067405,3.256707,3522.6,3522.2,0.05571281]
[1721427067939,5.811637,3522.6,3522.2,0.05571281]
[1721427068127,3.256707,3522.6,3522.2,0.05571281]
[1721427068332,3.256707,3522.6,3522.1,2.55529]
[1721427068561,3.256707,3522.6,3522.3,0.05564258]
[1721427068785,3.256707,3522.6,3522.2,0.05566144]
[1721427068965,2.513,3522.6,3522.4,0.0555648]
[1721427069173,2.513,3522.6,3522.3,2.61075312]
[1721427069331,2.513,3522.6,3522.5,0.05551648]
[1721427069531,2.513,3522.6,3522.1,2.55525]
[1721427069532,2.513,3522.6,3522.4,0.0555648]
[1721427069833,2.513,3522.6,3522.5,0.05551648]
[1721427070172,2.513,3522.6,3522.1,2.55525]
[1721427070382,2.513,3522.6,3522.5,0.05551648]
[1721427070558,2.513,3522.6,3521.8,2.55549]
[1721427070559,6.06713,3522.6,3521.9,2.55538]
[1721427070736,3.5122,3522.6,3522.5,0.05552101]
[1721427071232,2.55519,3522.3,3521.4,2.55578]
[1721427071433,2.55519,3522.3,3521.3,7.39]
[1721427071434,2.513,3522.2,3521.7,2.55557]
[1721427071664,2.513,3522.2,3521.8,0.05586004]
[1721427076590,5.63981905,3522.2,3521.8,0.05586004]
[1721427076788,5.06822,3522.2,3521.8,0.05586004]
[1721427076995,5.06822,3522.2,3521.6,2.55565]
[1721427076996,3.00019872,3522.4,3521.6,2.55565]
[1721427077144,3.00019872,3522.4,3521.9,0.0558306]
[1721427077145,2.55522,3522.2,3521.9,0.0558306]
[1721427077339,2.55522,3522.2,3521.6,2.55565]
[1721427077340,3.00019872,3522.4,3521.7,2.55553]
[1721427077866,3.00019872,3522.4,3521.3,7.39]
[1721427077867,2.55522,3522.2,3521.8,0.05587968]
[1721427078040,2.55522,3522.2,3521.4,2.55577]
[1721427078237,2.55522,3522.2,3521.5,0.05603603]
[1721427078643,2.55522,3522.2,3521.6,2.55559]
[1721427078880,2.55522,3522.2,3521.7,0.05593935]
[1721427079185,3.08227518,3522.2,3521.7,0.05593935]
[1721427080570,3.08227518,3522.2,3521.7,2.61151935]
[1721427081550,0.52705518,3522.2,3521.7,2.61151935]
[1721427082287,2.55515,3522.3,3521.7,2.61151935]
[1721427082863,3.00020872,3522.4,3521.8,2.55548]
[1721427083064,3.00020872,3522.4,3521.9,0.05582305]
[1721427083296,0.44511872,3522.4,3521.9,0.05582305]
[1721427083506,5.06795,3522.6,3521.9,0.05582305]
[1721427083719,0.44509664,3522.8,3522.3,2.55509]
[1721427083994,2.55471,3522.9,3522.3,2.55509]
[1721427084164,2.55471,3522.9,3522.4,0.05558142]
[1721427087359,2.55471,3522.9,3522.4,2.61064142]
[1721427088096,0.44506349,3523.3,3522.8,2.55474]
[1721427088306,0.44506349,3523.3,3522.8,2.55475]
[1721427088507,0.44506349,3523.3,3522.9,0.05529303]
[1721427088661,2.4025,3523.6,3523.1,2.55452]
[1721427088862,2.4025,3523.6,3523.2,0.05514813]
[1721427089096,2.4025,3523.6,3523.2,2.60962813]
[1721427089720,3.149461,3523.6,3523.2,2.60962813]
[1721427089861,5.703661,3523.6,3523.2,0.05514813]
[1721427090077,5.703661,3523.6,3523.0,2.5546]
[1721427090313,5.703661,3523.6,3523.1,0.05515489]
[1721427090776,5.703661,3523.6,3523.0,2.5546]
[1721427090975,5.703661,3523.6,3523.2,0.05510659]
[1721427091173,3.149461,3523.6,3523.1,2.60970489]
[1721427091359,2.55408,3523.8,3523.3,0.0550583]
[1721427091671,2.55408,3523.8,3523.4,0.05501831]
[1721427091672,3.0,3523.7,3523.4,0.05501831]
[1721427091877,3.0,3523.7,3523.2,2.55447]
[1721427092206,3.0,3523.7,3523.3,0.05505377]
[1721427092502,3.0,3523.7,3523.2,2.55447]
[1721427092795,3.0,3523.7,3523.4,0.05500548]
[1721427092982,3.0,3523.7,3523.3,0.05505377]
[1721427093187,3.0,3523.7,3523.5,0.05495719]
[1721427093359,3.0,3523.7,3523.4,0.05500548]
[1721427093566,3.0,3523.7,3523.6,0.0549089]
[1721427093761,3.0,3523.7,3523.2,2.55447]
[1721427093762,3.0,3523.7,3523.5,0.05495719]
[1721427093988,3.0,3523.7,3523.6,0.0549089]
[1721427094409,3.0,3523.7,3523.2,2.55447]
[1721427094568,3.0,3523.7,3523.6,0.0549089]
[1721427094904,6.601148,3523.7,3523.6,0.0549089]
[1721427095205,6.601148,3523.7,3523.0,2.5546]
[1721427095569,6.601148,3523.7,3523.1,0.05500838]
[1721427097413,6.601148,3523.7,3523.1,0.05500838]
[1721427099101,4.046958,3523.7,3523.1,2.60956838]
[1721427099313,3.0,3523.7,3523.1,2.60956838]
[1721427100513,5.55413,3523.7,3523.1,2.60956838]
[1721427102188,2.5542,3523.6,3523.1,2.60956838]
[1721427103239,4.95699,3523.2,3523.1,0.05500838]
[1721427103524,2.55458,3523.1,3522.7,7.39]
[1721427104396,2.55406,3523.8,3522.7,7.39]
[1721427104397,4.87295,3523.9,3523.0,2.55459]
[1721427104931,5.55406,3523.8,3523.1,2.55452]
[1721427105137,5.50997622,3523.8,3523.1,2.55452]
[1721427105539,2.55406,3523.8,3523.1,2.55452]
[1721427106712,2.55406,3523.8,3523.2,2.55449]
[1721427107647,2.3189,3523.9,3523.4,2.5543]
[1721427109928,5.55378,3524.2,3523.6,2.55419]
[1721427109929,7.87268,3524.2,3523.6,2.55419]
[1721427110308,5.3189,3524.2,3523.7,2.55411]
[1721427110902,7.87269,3524.2,3523.6,2.55416]
[1721427112009,1.045,3523.7,3523.6,2.55416]
[1721427112204,1.045,3523.7,3523.6,1.249847]
[1721427117124,1.045,3523.7,3523.5,2.55426]
[1721427117958,3.5992,3523.7,3523.2,0.510908]
[1721427118159,1.045,3523.4,3523.2,3.065398]
[1721427118566,1.045,3523.4,3523.3,0.05489293]
[1721427118771,1.045,3523.4,3523.3,1.05102909]
[1721427118977,1.045,3523.4,3523.3,1.10592202]
[1721427120076,1.045,3524.4,3523.7,2.55408]
[1721427120274,1.045,3524.4,3523.9,2.55398]
[1721427120561,1.045,3524.4,3524.0,0.05455644]
[1721427121170,1.045,3524.4,3524.0,2.60842644]
[1721427122270,5.5534,3524.7,3524.0,2.60842644]
[1721427122271,5.5534,3524.7,3524.1,2.55384]
[1721427122773,5.5534,3524.7,3524.2,0.05442065]
[1721427122934,5.5534,3524.7,3524.1,2.55384]
[1721427123354,5.5534,3524.7,3524.2,0.05442065]
[1721427123963,2.55348,3524.6,3524.1,2.55384]
[1721427124364,2.55348,3524.6,3524.2,0.05442065]
[1721427124968,2.3157,3524.5,3524.2,0.05442065]
[1721427125173,4.86925,3524.5,3523.9,2.55394]
[1721427125471,4.86925,3524.5,3524.3,0.05437239]
[1721427125681,2.3157,3524.5,3524.3,0.05437239]
[1721427125832,2.3157,3524.5,3524.4,0.05432412]
[1721427126170,2.3157,3524.5,3524.0,2.55391]
[1721427126532,2.3157,3524.5,3524.1,0.0544727]
[1721427127766,4.86926,3524.5,3524.1,0.0544727]
[1721427127947,4.86926,3524.5,3523.7,2.5541]
[1721427128250,4.86926,3524.5,3524.2,0.05442669]
[1721427128251,2.507,3524.3,3524.2,0.05442669]
[1721427128569,4.86926,3524.5,3523.9,2.55397]
[1721427128770,4.86926,3524.5,3524.2,0.05442669]
[1721427128977,4.86926,3524.5,3523.9,2.55397]
[1721427129143,4.86926,3524.5,3524.3,0.05437842]
[1721427129348,4.86926,3524.5,3523.9,2.55397]
[1721427129535,4.86926,3524.5,3524.4,0.05253921]
[1721427129736,5.55343,3524.7,3524.4,0.05253921]
[1721427129967,5.55343,3524.7,3524.0,2.55391]
[1721427129968,3.0,3524.7,3524.0,2.55391]
[1721427130180,3.0,3524.8,3524.5,0.0524887]
[1721427130375,2.55338,3524.8,3524.2,2.55377]
[1721427130535,3.0,3524.7,3524.6,0.05243969]
[1721427130735,3.0,3524.7,3524.2,2.55377]
[1721427130966,3.0,3524.7,3524.6,0.05243969]
[1721427131351,3.0,3524.7,3524.4,2.55359]
[1721427131553,7.86896,3524.9,3524.6,0.05243294]
[1721427131750,7.86896,3524.9,3524.4,2.55359]
[1721427131955,7.86896,3524.9,3524.7,0.05238468]
[1721427132163,7.86896,3524.9,3524.4,2.55359]
[1721427132476,7.86896,3524.9,3524.8,0.05233643]
[1721427132854,7.86896,3524.9,3524.4,2.55359]
[1721427133367,7.86896,3524.9,3524.5,0.0524812]
[1721427134273,2.55334,3524.8,3524.5,0.0524812]
[1721427134461,3.0,3524.7,3524.2,2.55373]
[1721427134657,3.0,3524.7,3524.6,0.05243294]
[1721427134658,8.10696,3524.7,3524.6,0.05243294]
[1721427134861,2.497,3524.3,3523.8,2.55403]
[1721427135195,2.497,3524.3,3523.9,0.05275358]
[1721427135387,5.05069,3524.3,3523.9,0.05275358]
[1721427136705,2.59255828,3524.2,3523.9,0.05275358]
[1721427136908,2.55377,3524.2,3523.9,0.05275358]
[1721427137063,2.55377,3524.2,3524.0,0.0527053]
[1721427137576,2.507,3524.6,3524.1,0.05265703]
[1721427137577,2.55367,3524.4,3524.1,0.05265703]
[1721427137808,2.55367,3524.4,3523.8,2.554]
[1721427138009,2.55367,3524.4,3524.2,0.05260876]
[1721427138177,2.55367,3524.4,3523.9,0.510815]
[1721427138382,2.55367,3524.4,3524.3,0.05256049]
[1721427138579,2.55367,3524.4,3523.9,3.064795]
[1721427138779,2.55367,3524.4,3524.3,0.05256049]
[1721427139107,2.55367,3524.4,3523.9,3.064795]
[1721427139315,2.55367,3524.4,3524.3,0.05256049]
[1721427139607,2.55367,3524.4,3523.9,0.510815]
[1721427139816,2.55367,3524.4,3524.3,0.05256049]
[1721427139966,2.55367,3524.4,3523.8,2.554]
[1721427140171,2.55367,3524.4,3524.3,0.05255226]
[1721427140400,2.55367,3524.4,3523.8,2.554]
[1721427140604,2.55367,3524.4,3524.3,0.05255226]
[1721427140902,3.0,3524.7,3523.5,2.3208]
[1721427141118,3.0,3524.7,3524.2,2.55371]
[1721427141280,3.0,3524.7,3524.0,2.55386]
[1721427141281,5.55342,3524.7,3524.0,2.55386]
[1721427141482,2.55348,3524.6,3524.3,0.05255226]
[1721427141671,2.55348,3524.6,3524.0,2.55386]
[1721427141873,2.55348,3524.6,3524.4,0.05250399]
[1721427142085,2.55348,3524.6,3524.0,2.55386]
[1721427142280,2.55348,3524.6,3524.5,0.05245573]
[1721427143013,2.55348,3524.6,3524.0,2.55386]
[1721427143190,2.55348,3524.6,3524.5,0.05245573]
[1721427143385,2.55348,3524.6,3524.0,2.55386]
[1721427143586,2.55348,3524.6,3524.5,0.05245573]
[1721427143909,2.55348,3524.6,3524.0,2.55386]
[1721427144139,2.55348,3524.6,3524.1,0.510791]
[1721427144521,2.55348,3524.6,3524.2,0.05260053]
[1721427145405,2.55361,3524.5,3524.2,0.05260053]
[1721427145796,2.55361,3524.5,3523.9,2.55398]
[1721427146022,2.55361,3524.5,3524.3,0.05256125]
[1721427146231,2.55361,3524.5,3523.9,2.55398]
[1721427146427,2.55361,3524.5,3524.4,0.05251299]
[1721427146630,2.55361,3524.5,3523.4,7.39]
[1721427146631,2.5537,3524.3,3523.7,2.55407]
[1721427147211,1.045,3523.9,3523.7,2.55407]
[1721427147394,1.045,3523.9,3523.5,2.55423]
[1721427147592,1.045,3523.9,3523.5,3.8551758]
[1721427147909,1.045,3523.9,3523.6,2.5542]
[1721427148601,1.045,3523.9,3523.7,0.0528509]
[1721427149135,1.045,3523.9,3523.7,2.6069809]
[1721427150159,2.55357,3524.5,3523.8,2.55404]
[1721427150289,2.55357,3524.5,3523.9,3.30948209]
[1721427150718,2.55357,3524.5,3524.0,0.05270606]
[1721427152646,2.55357,3524.5,3524.0,0.05270606]
[1721427153115,2.55348,3524.6,3524.0,2.60660606]
[1721427153714,2.55355,3524.5,3524.0,0.05270606]
[1721427154132,2.5537,3524.3,3524.0,0.05270606]
[1721427154309,2.5537,3524.3,3523.7,2.55412]
[1721427154814,4.85377,3524.2,3523.8,0.05280262]
[1721427155029,4.85377,3524.2,3523.5,9.9442]
[1721427155259,4.85377,3524.2,3523.9,0.05274534]
[1721427155546,4.85377,3524.2,3523.5,9.9442]
[1721427155843,4.85377,3524.2,3523.6,1.22136]
[1721427156039,4.85377,3524.2,3523.6,3.82844018]
[1721427157231,2.3,3524.2,3523.7,2.55413]
[1721427157448,2.55366,3524.4,3523.7,2.55413]
[1721427157763,2.55366,3524.4,3523.8,0.05279362]
[1721427158401,2.5537,3524.3,3523.8,0.05279362]
[1721427163553,5.55341,3524.7,3524.0,2.55391]
[1721427163877,2.55333,3524.8,3524.2,2.55372]
[1721427164187,3.0,3524.7,3524.2,2.55372]
[1721427164481,3.0,3524.7,3524.3,0.05256349]
[1721427164847,3.0,3524.7,3524.2,2.55372]
[1721427165077,3.0,3524.7,3524.4,2.60611949]
[1721427165307,5.55327,3524.9,3524.3,0.05251253]
[1721427165455,5.55327,3524.9,3524.5,0.05241676]
[1721427165663,5.55327,3524.9,3524.2,2.55372]
[1721427165963,5.55327,3524.9,3524.3,0.05251328]
[1721427168164,5.55327,3524.9,3524.3,2.60620328]
[1721427171884,2.55338,3524.8,3524.3,0.05251328]
[1721427172049,1.045,3524.4,3524.3,0.05251328]
[1721427172248,1.045,3524.4,3524.1,2.55379]
[1721427172449,1.045,3524.2,3524.1,2.55379]
[1721427177251,1.045,3524.2,3523.9,2.55397]
[1721427177797,1.045,3524.2,3524.0,2.55391]
[1721427178652,1.045,3524.2,3524.1,0.05261582]
[1721427178849,1.045,3524.2,3523.7,3.93135802]
[1721427179049,1.045,3524.2,3524.1,0.05261582]
[1721427179303,1.045,3524.2,3523.7,2.5541]
[1721427179596,1.045,3524.0,3523.6,2.5542]
[1721427181011,1.045,3524.0,3523.7,0.98651137]
[1721427181218,1.045,3524.0,3523.7,1.40771377]
[1721427181613,1.045,3524.0,3523.7,3.96183377]
[1721427183033,1.045,3524.2,3523.7,3.96183377]
[1721427183234,7.90394,3524.7,3524.1,2.55383]
[1721427183395,1.045,3524.6,3524.3,2.55369]
[1721427186498,0.44486468,3525.0,3524.5,2.55355]
[1721427186697,1.045,3525.0,3524.7,2.55336]
[1721427187228,1.045,3525.0,3524.8,2.55333]
[1721427190327,2.3211,3525.3,3524.9,2.55326]
[1721427190525,1.045,3525.0,3524.9,2.55326]
[1721427190817,1.045,3525.0,3524.9,3.063923]
[1721427191547,1.045,3525.0,3524.7,2.55337]
[1721427191688,1.045,3524.8,3524.7,2.55337]
[1721427193700,1.045,3524.8,3524.7,2.60563553]
[1721427195205,1.045,3525.1,3524.9,2.55319]
[1721427195413,1.045,3525.1,3525.0,2.55319]
[1721427195600,1.045,3525.1,3525.0,2.60531078]
[1721427197094,1.045,3525.1,3525.0,0.05212078]
[1721427197521,1.045,3525.1,3524.8,2.55327]
[1721427197738,4.8146,3525.3,3525.0,0.05212078]
[1721427197922,4.8146,3525.3,3524.9,0.05216902]
[1721427198146,4.8146,3525.3,3525.1,0.05207253]
[1721427198336,2.2616,3525.3,3525.0,0.05212078]
[1721427198639,2.2616,3525.3,3524.7,2.5534]
[1721427198938,1.045,3524.8,3524.7,2.5534]
[1721427199107,1.045,3524.8,3524.7,3.064092]
[1721427199721,1.045,3524.8,3524.7,2.5534]
[1721427201809,1.045,3524.8,3524.0,2.3941]
[1721427202145,2.55307,3525.2,3524.3,2.55365]
[1721427202146,1.045,3524.6,3524.3,2.55365]
[1721427203511,1.045,3524.6,3524.4,2.55362]
[1721427205140,1.045,3524.6,3524.2,2.55369]
[1721427205305,1.045,3524.6,3524.3,1.233779]
[1721427205506,1.045,3524.6,3524.3,3.787429]
[1721427206032,2.3141,3524.8,3524.0,2.55388]
[1721427206033,1.045,3524.4,3524.0,2.55388]
[1721427206231,2.3141,3524.8,3523.7,7.39]
[1721427206232,3.3591,3524.2,3523.7,7.39]
[1721427206539,3.3591,3524.2,3523.2,0.510908]
[1721427206540,1.045,3523.8,3523.1,9.94451]
[1721427206726,1.045,3523.3,3523.1,5.3757616]
[1721427206933,1.045,3523.3,3523.1,2.8212516]
[1721427207114,1.045,3523.3,3523.1,5.3758016]
[1721427208546,1.045,3523.3,3522.8,19.65]
[1721427208710,2.55442,3523.3,3523.2,0.04622342]
[1721427208910,2.5545,3523.2,3522.5,2.55498]
[1721427209910,1.045,3522.7,3522.5,2.55498]
[1721427210112,1.045,3522.7,3522.5,3.804991]
[1721427210417,1.045,3522.7,3522.5,2.55498]
[1721427210619,2.5545,3523.2,3522.5,2.55498]
[1721427210834,2.55436,3523.4,3521.9,19.65]
[1721427211013,2.3141,3523.5,3523.0,2.55463]
[1721427211221,5.55407,3523.8,3523.2,2.55442]
[1721427211222,2.3481,3523.8,3523.2,2.55442]
[1721427211458,2.3481,3524.1,3523.4,2.55433]
[1721427211619,4.90194,3524.1,3523.4,2.55433]
[1721427211829,1.045,3523.6,3523.4,2.55433]
[1721427213153,1.045,3523.6,3523.3,2.55437]
[1721427213306,1.045,3523.6,3523.4,2.55432]
[1721427213649,3.0,3524.0,3523.5,2.55427]
[1721427213866,1.045,3523.7,3523.5,2.55427]
[1721427214009,3.0,3524.0,3523.5,2.55427]
[1721427214210,3.0,3524.0,3523.0,2.55457]
[1721427214510,2.55399,3523.9,3523.1,2.55456]
[1721427214943,0.03878828,3523.8,3522.6,7.39]
[1721427215118,2.55449,3523.2,3522.6,7.39]
[1721427215521,2.55449,3523.2,3522.6,9.94491]
[1721427216448,2.55449,3523.2,3522.6,7.39]
[1721427217649,0.745696,3523.2,3522.6,7.39]
[1721427217851,2.55468,3523.0,3522.6,7.39]
[1721427218870,2.55454,3523.2,3522.6,7.39]
[1721427219265,4.90252,3523.3,3522.6,9.94488]
[1721427219562,2.55451,3523.2,3522.6,9.94488]
[1721427219763,2.55451,3523.2,3522.7,1.490793]
[1721427220101,2.55439,3523.4,3522.7,4.045643]
[1721427220257,2.55442,3523.3,3522.7,4.045643]
[1721427222666,2.55442,3523.3,3522.7,2.55485]
[1721427222884,2.5545,3523.2,3522.5,2.55499]
[1721427223093,2.5545,3523.2,3522.6,2.55492]
[1721427224083,2.5545,3523.2,3522.7,0.04219954]
[1721427224250,2.5544,3523.4,3522.7,0.04219954]
[1721427224450,2.55442,3523.3,3522.7,0.04219954]
[1721427224881,2.5545,3523.2,3522.7,0.04219954]
[1721427225697,2.3763,3523.1,3522.5,2.55495]
[1721427225902,2.3763,3523.1,3522.8,0.04219923]
[1721427226112,2.3763,3523.1,3522.5,2.55495]
[1721427226287,2.55466,3523.0,3522.9,0.04215092]
[1721427226482,2.55466,3523.0,3522.3,7.39]
[1721427226726,2.55466,3523.0,3522.4,2.220527]
[1721427226871,2.3763,3523.1,3522.4,4.81792948]
[1721427227207,2.3763,3523.1,3522.5,2.55498]
[1721427227411,2.3763,3523.1,3522.4,2.59744248]
[1721427227708,2.3763,3523.1,3522.5,0.04234416]
[1721427230193,2.55442,3523.3,3522.9,0.03690761]
[1721427230502,2.55442,3523.3,3523.0,0.03565188]
[1721427230709,2.55442,3523.3,3522.7,2.55485]
[1721427230906,2.3763,3523.5,3523.1,0.0344395]
[1721427230907,4.93063,3523.5,3523.1,0.0344395]
[1721427231205,4.93063,3523.5,3522.8,2.55476]
[1721427231367,4.93063,3523.5,3523.2,0.03326898]
[1721427231567,4.93063,3523.5,3522.8,2.55476]
[1721427231767,4.93063,3523.5,3523.3,0.03213888]
[1721427231997,4.93063,3523.5,3522.8,2.55476]
[1721427232164,4.93063,3523.5,3523.4,0.03109878]